bitfinex/quotes_BTCUSD_20250109
["timestamp","ask_amount","ask_price","bid_price","bid_amount"]
[1736455449180,0.68035367,92000.0,91999.0,0.35520374]
[1736455449342,0.68035367,92000.0,91999.0,0.35920374]
[1736455450557,0.68035367,92000.0,91999.0,0.35520374]
[1736455450768,0.68035367,92000.0,91999.0,0.35920374]
[1736455450981,0.68035367,92000.0,91999.0,0.35020374]
[1736455451386,0.68035367,92000.0,91999.0,0.45592176]
[1736455451689,0.68035367,92000.0,91999.0,0.44692176]
[1736455452071,0.68035367,92000.0,91999.0,0.45192176]
[1736455452476,0.68035367,92000.0,91999.0,0.45692176]
[1736455452684,0.68035367,92000.0,91999.0,0.44792174]
[1736455452884,0.68035367,92000.0,91999.0,0.35120372]
[1736455453089,0.68035367,92000.0,91999.0,0.45060372]
[1736455453477,0.68035367,92000.0,91999.0,0.42760372]
[1736455453686,0.68035367,92000.0,91999.0,0.41584372]
[1736455453888,0.68035367,92000.0,91999.0,0.34620372]
[1736455454117,0.68035367,92000.0,91999.0,0.33720372]
[1736455454563,0.13595282,92000.0,91999.0,0.34620372]
[1736455454771,0.13595282,92000.0,91999.0,0.009]
[1736455454976,0.13595282,92000.0,91999.0,0.021751]
[1736455455379,0.13595282,92000.0,91999.0,0.030751]
[1736455455587,0.13595282,92000.0,91999.0,0.13505076]
[1736455455799,0.09771609,92000.0,91999.0,0.28505076]
[1736455456003,0.09771609,92000.0,91999.0,0.30805076]
[1736455456206,0.09771609,92000.0,91999.0,0.29905076]
[1736455456844,0.09771609,92000.0,91999.0,0.30405076]
[1736455457432,0.09771609,92000.0,91999.0,0.29905076]
[1736455457627,0.09771609,92000.0,91999.0,0.30305076]
[1736455457829,0.09771609,92000.0,91999.0,0.29405074]
[1736455457983,0.09771609,92000.0,91999.0,0.30205074]
[1736455458190,0.09771609,92000.0,91999.0,0.30981074]
[1736455458396,0.09771609,92000.0,91999.0,0.27305074]
[1736455458606,0.09771609,92000.0,91999.0,0.14381074]
[1736455459252,0.09771609,92000.0,91999.0,0.16681074]
[1736455459453,0.09771609,92000.0,91999.0,0.13481074]
[1736455459979,0.09771609,92000.0,91999.0,0.13781074]
[1736455460187,0.09771609,92000.0,91999.0,0.16589761]
[1736455460403,0.09771609,92000.0,91999.0,0.16481074]
[1736455460630,0.09771609,92000.0,91999.0,0.16081074]
[1736455461240,0.09771609,92000.0,91999.0,0.15181074]
[1736455461389,0.09771609,92000.0,91999.0,0.15581074]
[1736455461591,0.09771609,92000.0,91999.0,0.16481074]
[1736455461802,0.09771609,92000.0,91999.0,0.15581074]
[1736455462211,0.09771609,92000.0,91999.0,0.16481074]
[1736455462409,0.09771609,92000.0,91999.0,0.13281074]
[1736455462905,0.09771609,92000.0,91999.0,0.11705072]
[1736455463129,0.09771609,92000.0,91999.0,0.12881072]
[1736455463310,0.09771609,92000.0,91999.0,0.13281072]
[1736455463698,0.09771609,92000.0,91999.0,0.12881072]
[1736455464101,0.09771609,92000.0,91999.0,0.13281072]
[1736455464294,0.09771609,92000.0,91999.0,0.12381072]
[1736455464500,0.09771609,92000.0,91999.0,0.13281072]
[1736455465290,0.09771609,92000.0,91999.0,0.15689751]
[1736455465722,0.09771609,92000.0,91999.0,0.13281072]
[1736455465919,0.09771609,92000.0,91999.0,0.30581072]
[1736455466141,0.09771609,92000.0,91999.0,0.27881072]
[1736455466553,0.09771609,92000.0,91999.0,0.28281072]
[1736455466795,0.09771609,92000.0,91999.0,0.29231072]
[1736455466991,0.09771609,92000.0,91999.0,0.28831072]
[1736455467301,0.09771609,92000.0,91999.0,0.29231072]
[1736455467658,0.09771609,92000.0,91999.0,0.2833107]
[1736455467870,0.09771609,92000.0,91999.0,0.2703107]
[1736455468076,0.09771609,92000.0,91999.0,0.2743107]
[1736455468265,0.09771609,92000.0,91999.0,0.2833107]
[1736455468477,0.09771609,92000.0,91999.0,0.31694255]
[1736455469041,0.09771609,92000.0,91999.0,0.30794255]
[1736455469181,0.09771609,92000.0,91999.0,0.2743107]
[1736455469384,0.09771609,92000.0,91999.0,0.31294289]
[1736455469668,0.09771609,92000.0,91999.0,0.31694289]
[1736455470468,0.09771609,92000.0,91999.0,0.55904528]
[1736455471084,0.09771609,92000.0,91999.0,0.31694289]
[1736455472400,0.09771609,92000.0,91999.0,0.33994289]
[1736455472572,0.09771609,92000.0,91999.0,0.33094289]
[1736455472747,0.09771609,92000.0,91999.0,0.32194287]
[1736455472953,0.09771609,92000.0,91999.0,0.14218287]
[1736455473316,0.09771609,92000.0,91999.0,0.05713219]
[1736455473744,0.09771609,92000.0,91999.0,0.05213219]
[1736455474267,0.09771609,92000.0,91999.0,0.05513219]
[1736455474506,0.35201585,92000.0,91999.0,0.0125]
[1736455474708,0.35201585,92000.0,91999.0,0.0095]
[1736455475122,0.35201585,92000.0,91999.0,0.0115]
[1736455475330,0.24771609,92000.0,91999.0,0.0205]
[1736455475538,0.24771609,92000.0,91999.0,0.04544261]
[1736455475749,0.24771609,92000.0,91999.0,0.04542798]
[1736455475955,0.24771609,92000.0,91999.0,0.0115]
[1736455476161,0.24771609,92000.0,91999.0,0.0135]
[1736455476366,0.24771609,92000.0,91999.0,0.0115]
[1736455476541,0.24771609,92000.0,91999.0,0.0095]
[1736455476956,0.01630076,92008.0,92007.0,0.217374]
[1736455477158,8.51e-05,92017.0,92016.0,0.23010398]
[1736455477359,0.000234,92017.0,92016.0,0.36831144]
[1736455477734,0.000234,92017.0,92016.0,0.25501166]
[1736455478140,0.000234,92017.0,92016.0,0.2512607]
[1736455478303,0.000234,92017.0,92016.0,0.0339077]
[1736455478502,0.000234,92017.0,92016.0,0.0349077]
[1736455478712,0.000234,92017.0,92016.0,0.0339077]
[1736455479122,0.000234,92017.0,92016.0,0.0429077]
[1736455479326,0.000234,92017.0,92016.0,0.15435235]
[1736455480266,0.01327513,92017.0,92016.0,0.009]
[1736455480518,0.01327513,92017.0,92016.0,0.011]
[1736455480945,0.01327513,92017.0,92016.0,0.002]
[1736455481079,0.05807774,92017.0,92016.0,0.002]
[1736455481309,0.3123775,92017.0,92016.0,0.002]
[1736455481544,0.000234,92017.0,92016.0,0.01]
[1736455482793,0.000234,92017.0,92016.0,0.008]
[1736455483204,0.000234,92017.0,92015.0,0.24151847]
[1736455483418,0.217585,92017.0,92009.0,0.28982216]
[1736455483616,0.217585,92017.0,92009.0,0.28082214]
[1736455484254,0.217585,92017.0,92008.0,0.217371]
[1736455484774,0.000234,92017.0,92008.0,0.217371]
[1736455485357,0.000234,92017.0,92016.0,0.003]
[1736455485780,0.000234,92017.0,92013.0,0.434719]
[1736455486866,0.000234,92017.0,92016.0,0.00975096]
[1736455487256,0.000234,92017.0,92016.0,0.00375096]
[1736455487661,0.000234,92017.0,92013.0,0.43046994]
[1736455487874,0.217336,92024.0,92013.0,0.43040592]
[1736455488170,0.217336,92024.0,92014.0,0.217358]
[1736455488409,4.23061822,92029.0,92014.0,0.217358]
[1736455488410,4.22717177,92029.0,92014.0,0.217358]
[1736455488627,0.273,92000.0,91989.0,0.43265667]
[1736455488827,0.25429976,92000.0,91999.0,0.0096489]
[1736455489244,0.217373,92008.0,91999.0,0.0096489]
[1736455489461,0.1,92022.0,91999.0,0.0096489]
[1736455489672,0.13179976,92021.0,91999.0,0.0096489]
[1736455489873,0.001,92000.0,91999.0,0.0106489]
[1736455490284,0.217387,92002.0,91999.0,0.0096489]
[1736455490500,0.434774,92002.0,91999.0,0.0106489]
[1736455490864,0.218373,92008.0,91999.0,0.0106489]
[1736455491065,0.001,92008.0,91999.0,0.0106489]
[1736455491786,0.15,92014.0,91999.0,0.0096489]
[1736455492000,0.217382,92004.0,91999.0,0.0096489]
[1736455492201,0.001,92000.0,91999.0,0.0096489]
[1736455492381,0.25429976,92000.0,91999.0,0.0096489]
[1736455492778,0.25429976,92000.0,91999.0,0.00164888]
[1736455492984,0.25429976,92000.0,91999.0,0.00064888]
[1736455493184,0.25529976,92000.0,91999.0,0.00064888]
[1736455493625,0.2675237,92000.0,91999.0,0.00064888]
[1736455494560,0.35949007,92000.0,91999.0,0.00064888]
[1736455494768,0.55949007,92000.0,91999.0,0.00064888]
[1736455494908,0.56049007,92000.0,91999.0,0.00064888]
[1736455495313,0.55949007,92000.0,91999.0,0.00064888]
[1736455495510,0.56049007,92000.0,91999.0,0.00064888]
[1736455497226,0.4685237,92000.0,91999.0,0.00064888]
[1736455497842,0.217443,91978.0,91968.0,0.00320141]
[1736455498069,0.217443,91978.0,91968.0,0.00335045]
[1736455498435,0.217456,91973.0,91968.0,0.00335045]
[1736455499367,0.217456,91973.0,91968.0,0.00935045]
[1736455499696,0.217456,91973.0,91968.0,0.00435045]
[1736455499866,0.2609464,91973.0,91968.0,0.00535045]
[1736455500169,0.434912,91973.0,91968.0,0.00114904]
[1736455500372,0.217456,91973.0,91968.0,0.00114904]
[1736455500821,0.217426,91986.0,91968.0,0.00114904]
[1736455501040,0.0131275,91987.0,91981.0,0.217434]
[1736455501247,0.21739,92001.0,91985.0,0.217425]
[1736455501446,0.217391,92000.0,91983.0,0.01172]
[1736455501679,0.10429976,91999.0,91983.0,0.01172]
[1736455501885,0.10429976,91999.0,91969.0,0.01172]
[1736455502089,0.217444,91978.0,91969.0,0.01172]
[1736455502494,0.217444,91978.0,91968.0,0.00014904]
[1736455502667,0.217436,91981.0,91964.0,0.07394902]
[1736455502872,0.00014871,91978.0,91964.0,0.07394902]
[1736455503080,0.00014871,91978.0,91965.0,0.217474]
[1736455503962,0.00014871,91978.0,91969.0,0.17923414]
[1736455503963,0.04350157,91977.0,91969.0,0.17923414]
[1736455504174,0.15,91962.0,91943.0,0.09772229]
[1736455504374,0.367523,91944.0,91943.0,0.09772229]
[1736455504972,0.15,91944.0,91943.0,0.09772229]
[1736455505425,0.15,91943.0,91923.0,0.217571]
[1736455505571,0.15,91943.0,91924.0,0.0010877]
[1736455505790,0.00014863,91943.0,91928.0,0.0831]
[1736455505997,0.00014863,91943.0,91933.0,0.217548]
[1736455506202,0.00014863,91943.0,91937.0,0.217538]
[1736455506806,0.00014863,91943.0,91941.0,0.217529]
[1736455507012,0.00214863,91943.0,91942.0,0.00125755]
[1736455507217,0.00214863,91943.0,91942.0,0.00017]
[1736455507453,0.00014863,91943.0,91942.0,0.00125751]
[1736455507670,0.00014863,91943.0,91941.0,0.20978649]
[1736455507907,0.00114863,91943.0,91942.0,0.10538726]
[1736455508111,0.00414863,91943.0,91942.0,0.10538726]
[1736455508304,0.00114863,91943.0,91942.0,0.1053872]
[1736455508560,0.00114863,91943.0,91942.0,0.18698716]
[1736455508756,0.00114863,91943.0,91942.0,0.19098716]
[1736455508911,0.00114863,91943.0,91942.0,0.19866716]
[1736455509115,0.00014863,91943.0,91942.0,0.19866716]
[1736455509316,0.00114863,91943.0,91942.0,0.20366716]
[1736455509519,0.00114863,91943.0,91942.0,0.19757976]
[1736455509719,0.00114863,91943.0,91942.0,0.19866712]
[1736455509943,0.00014863,91943.0,91942.0,0.22166712]
[1736455510281,0.00014863,91943.0,91942.0,0.22257976]
[1736455510767,0.00014863,91943.0,91942.0,0.22057976]
[1736455511046,0.00114863,91943.0,91942.0,0.22957976]
[1736455511260,0.00114863,91943.0,91942.0,0.23157976]
[1736455511469,0.00014863,91943.0,91942.0,0.22257976]
[1736455511743,0.01245271,91975.0,91942.0,0.22257976]
[1736455511744,0.01245271,91975.0,91970.0,0.217461]
[1736455511993,0.00014887,91975.0,91972.0,0.0458]
[1736455512331,0.00014887,91975.0,91974.0,0.367452]
[1736455512565,0.00014887,91975.0,91974.0,0.49475176]
[1736455512844,0.00014887,91975.0,91974.0,0.48575174]
[1736455513060,0.00214887,91975.0,91974.0,0.48575174]
[1736455513489,0.00214887,91975.0,91974.0,0.48775174]
[1736455513704,0.00214887,91975.0,91974.0,0.22213198]
[1736455513911,0.00214887,91975.0,91974.0,0.14577829]
[1736455514151,0.00014887,91975.0,91974.0,0.14577829]
[1736455514386,0.00014887,91975.0,91974.0,0.14877829]
[1736455514630,0.00014887,91975.0,91974.0,0.01]
[1736455514876,0.00014887,91975.0,91974.0,0.003]
[1736455515372,0.00114887,91975.0,91974.0,0.003]
[1736455515579,0.00014887,91975.0,91974.0,0.003]
[1736455515791,0.00014887,91975.0,91974.0,0.006]
[1736455516120,0.00014887,91975.0,91974.0,0.003]
[1736455517297,0.00014887,91975.0,91972.0,0.217457]
[1736455517613,0.00014887,91975.0,91974.0,0.004]
[1736455517813,0.00014887,91975.0,91972.0,0.42991398]
[1736455518746,0.00014887,91975.0,91974.0,0.219452]
[1736455518946,0.00014887,91975.0,91974.0,0.32375176]
[1736455519144,0.00014887,91975.0,91974.0,0.34475176]
[1736455519354,0.00014887,91975.0,91974.0,0.42325176]
[1736455520261,0.00014887,91975.0,91974.0,0.62415176]
[1736455520511,0.00014887,91975.0,91974.0,0.72415176]
[1736455520747,0.00014887,91975.0,91974.0,0.72315176]
[1736455520952,0.00014887,91975.0,91974.0,0.7360175]
[1736455521177,8.51e-05,92012.0,92010.0,0.217367]
[1736455521400,0.00023397,92012.0,92010.0,0.217367]
[1736455522449,0.00223397,92012.0,92009.0,0.09726163]
[1736455522842,0.00023397,92012.0,92009.0,0.21737]
[1736455523057,0.00023397,92012.0,92010.0,0.005]
[1736455523659,0.00023397,92012.0,92011.0,0.217365]
[1736455525332,0.00023397,92012.0,92011.0,0.232045]
[1736455525743,0.00023397,92012.0,92011.0,0.229045]
[1736455525954,0.00023397,92012.0,92011.0,0.33334476]
[1736455526158,0.00023397,92012.0,92011.0,0.33834476]
[1736455526589,9.7e-07,92012.0,92011.0,0.61624476]
[1736455526812,9.7e-07,92012.0,92011.0,0.73924476]
[1736455527021,9.7e-07,92012.0,92011.0,0.87399317]
[1736455527232,9.7e-07,92012.0,92011.0,0.84024476]
[1736455527456,9.7e-07,92012.0,92011.0,1.11712274]
[1736455527666,9.7e-07,92012.0,92011.0,1.11112274]
[1736455527868,9.7e-07,92012.0,92011.0,1.12612274]
[1736455528273,9.7e-07,92012.0,92011.0,0.87396867]
[1736455528485,9.7e-07,92012.0,92011.0,0.88296867]
[1736455528725,9.7e-07,92012.0,92011.0,0.64924476]
[1736455528945,9.7e-07,92012.0,92011.0,0.84924476]
[1736455529153,9.7e-07,92012.0,92011.0,1.08164035]
[1736455529786,9.7e-07,92012.0,92011.0,0.64924476]
[1736455529964,9.7e-07,92012.0,92011.0,0.74924476]
[1736455530397,9.7e-07,92012.0,92011.0,0.74324476]
[1736455530575,9.7e-07,92012.0,92011.0,0.74724476]
[1736455530807,9.7e-07,92012.0,92011.0,0.73824476]
[1736455531013,9.7e-07,92012.0,92011.0,0.83824476]
[1736455531222,9.7e-07,92012.0,92011.0,0.83424476]
[1736455531431,9.7e-07,92012.0,92011.0,0.84024476]
[1736455531614,9.7e-07,92012.0,92011.0,0.84924476]
[1736455531815,9.7e-07,92012.0,92011.0,0.84024476]
[1736455532033,9.7e-07,92015.0,92014.0,0.35]
[1736455532235,8.5e-05,92037.0,92020.0,0.1]
[1736455532444,8.5e-05,92037.0,92028.0,0.217325]
[1736455532657,8.5e-05,92037.0,92028.0,0.32162476]
[1736455532860,8.5e-05,92037.0,92021.0,0.434682]
[1736455533089,8.5e-05,92037.0,92015.0,0.217355]
[1736455533090,0.00134561,92028.0,92015.0,0.217355]
[1736455533221,0.217326,92028.0,92012.0,0.01164]
[1736455533428,0.00134561,92027.0,92013.0,0.21736]
[1736455533643,4.21418255,92029.0,92027.0,0.217325]
[1736455534243,4.21418255,92029.0,92028.0,0.01164]
[1736455535179,4.21418255,92029.0,92028.0,0.11593976]
[1736455535561,4.21418255,92029.0,92028.0,0.11793976]
[1736455535978,4.46848231,92029.0,92028.0,0.00085137]
[1736455536390,0.15,92028.0,92027.0,0.14544692]
[1736455536523,0.25564537,92028.0,92005.0,0.09691763]
[1736455536727,4.21418255,92029.0,92005.0,0.31429563]
[1736455536728,0.217348,92019.0,92005.0,0.31429563]
[1736455536951,0.217351,92017.0,92005.0,0.31429563]
[1736455537159,0.217355,92015.0,92005.0,0.31429563]
[1736455537397,0.02459833,92014.0,91995.0,0.01178887]
[1736455537600,0.02459833,92014.0,91996.0,0.2174]
[1736455537800,0.217371,92009.0,91996.0,0.20839998]
[1736455538200,0.217362,92013.0,91996.0,0.20839998]
[1736455538404,0.217365,92011.0,91997.0,0.217398]
[1736455538614,0.00134561,92010.0,92001.0,0.217387]
[1736455538817,0.21736,92013.0,92001.0,0.217387]
[1736455539046,0.00134561,92012.0,92011.0,0.217365]
[1736455539246,0.217338,92023.0,91995.0,0.01178887]
[1736455539414,0.217329,92027.0,92010.0,0.217366]
[1736455539611,0.001,92011.0,92010.0,0.217366]
[1736455540817,0.217341,92022.0,92010.0,0.217366]
[1736455541225,0.002,92013.0,92010.0,0.217366]
[1736455541404,0.217341,92022.0,92010.0,0.217366]
[1736455541609,0.217341,92022.0,92011.0,0.01164]
[1736455541856,0.32162876,92026.0,92012.0,0.217362]
[1736455542683,0.002,92022.0,92012.0,0.217362]
[1736455543463,0.002,92022.0,92016.0,0.217352]
[1736455543697,0.002,92022.0,92011.0,0.01164]
[1736455544028,0.01197802,92027.0,92018.0,0.217348]
[1736455544210,0.007,92026.0,92018.0,0.217348]
[1736455544365,0.001,92026.0,92018.0,0.217348]
[1736455544569,0.217321,92030.0,92018.0,0.217348]
[1736455544780,0.005,92022.0,92018.0,0.217348]
[1736455545155,0.005,92022.0,92012.0,0.01164]
[1736455545156,0.001,92022.0,92013.0,0.21736]
[1736455545329,0.217331,92026.0,92018.0,0.001]
[1736455545734,0.217342,92021.0,92013.0,0.01164]
[1736455546215,0.217332,92025.0,92013.0,0.01164]
[1736455546470,0.004,92022.0,92009.0,0.229008]
[1736455546721,0.1,92014.0,91995.0,0.00014887]
[1736455546965,0.217392,92000.0,91995.0,0.00014887]
[1736455547213,0.217396,91998.0,91995.0,0.00014887]
[1736455547458,0.2174,91996.0,91995.0,0.00014887]
[1736455547735,0.47169976,91996.0,91995.0,0.00014887]
[1736455547977,0.217417,91989.0,91976.0,0.30551248]
[1736455548221,0.217417,91989.0,91976.0,0.217446]
[1736455548475,0.15,91993.0,91976.0,0.217446]
[1736455548733,0.25429976,91993.0,91977.0,0.217445]
[1736455548977,0.15,91989.0,91977.0,0.217445]
[1736455549217,0.217432,91983.0,91973.0,0.0001702]
[1736455549464,0.217422,91987.0,91973.0,0.0001702]
[1736455549658,0.32172176,91987.0,91973.0,0.0001702]
[1736455550113,0.15,91991.0,91973.0,0.0001702]
[1736455550328,0.15,91989.0,91973.0,0.0001702]
[1736455550542,0.217426,91985.0,91973.0,0.0001702]
[1736455550973,0.217438,91981.0,91973.0,0.0001702]
[1736455551180,0.217438,91981.0,91977.0,0.001]
[1736455551328,0.217426,91985.0,91977.0,0.001]
[1736455551714,0.217426,91985.0,91973.0,0.0001702]
[1736455551905,0.002,91983.0,91973.0,0.0001702]
[1736455552570,0.0792,92011.0,91987.0,0.217421]
[1736455552787,0.005,91985.0,91984.0,0.217429]
[1736455553100,0.007,91985.0,91984.0,0.40262876]
[1736455553216,0.007,91985.0,91984.0,0.44872876]
[1736455553422,0.15,91981.0,91973.0,0.0001702]
[1736455553632,0.2,91982.0,91976.0,0.19392923]
[1736455553633,0.3292,91977.0,91976.0,0.19392923]
[1736455553830,0.45649976,91977.0,91976.0,0.07664043]
[1736455554059,0.1,91974.0,91973.0,0.23908322]
[1736455554269,0.35429976,91974.0,91973.0,0.23908322]
[1736455554488,0.35429976,91974.0,91943.0,0.43505]
[1736455554489,0.217484,91961.0,91943.0,0.43505]
[1736455554690,0.217484,91961.0,91937.0,0.14580854]
[1736455554691,0.0217484,91960.0,91937.0,0.14580854]
[1736455554894,0.1,91970.0,91944.0,0.217521]
[1736455555096,0.217486,91960.0,91944.0,0.217521]
[1736455555315,0.217496,91956.0,91944.0,0.217521]
[1736455556860,0.217508,91951.0,91943.0,0.00014887]
[1736455557104,0.0217508,91950.0,91943.0,0.00014887]
[1736455557891,0.10429976,91959.0,91935.0,0.0001702]
[1736455558140,0.001,91951.0,91938.0,0.217537]
[1736455558448,0.002,91956.0,91939.0,0.217535]
[1736455558721,0.1,91966.0,91940.0,0.217533]
[1736455558991,0.001,91950.0,91940.0,0.217533]
[1736455559475,0.001,91951.0,91946.0,0.435035]
[1736455560541,0.01232758,91966.0,91947.0,0.10538739]
[1736455560759,0.217419,91988.0,91976.0,0.217446]
[1736455560965,0.04663891,91986.0,91974.0,0.21745]
[1736455561189,0.10429976,91985.0,91974.0,0.21745]
[1736455561400,0.1,91984.0,91956.0,0.01164]
[1736455561617,0.217457,91972.0,91959.0,0.217485]
[1736455561824,0.0217457,91971.0,91959.0,0.434973]
[1736455562034,0.434924,91970.0,91956.0,0.15744854]
[1736455562254,0.12604546,91971.0,91956.0,0.01164]
[1736455562857,0.12604546,91971.0,91956.0,0.00263998]
[1736455563461,0.217452,91974.0,91959.0,0.217488]
[1736455563663,0.217452,91974.0,91959.0,0.21763668]
[1736455564046,0.28718026,91974.0,91959.0,0.21763668]
[1736455564465,0.001,91971.0,91959.0,0.21763668]
[1736455564895,0.28918026,91974.0,91959.0,0.21763668]
[1736455565090,0.28918026,91974.0,91959.0,0.43512468]
[1736455565291,0.07072826,91974.0,91963.0,0.217478]
[1736455565516,0.001,91974.0,91963.0,0.217478]
[1736455565716,0.001,91971.0,91963.0,0.217478]
[1736455566054,0.001,91971.0,91969.0,0.217464]
[1736455566234,0.001,91971.0,91970.0,0.10429976]
[1736455566661,0.001,91971.0,91970.0,0.18289976]
[1736455567050,0.217381,92004.0,91991.0,0.217411]
[1736455567267,0.10429976,92003.0,91991.0,0.217411]
[1736455567409,0.217386,92002.0,91988.0,0.217419]
[1736455567774,0.217386,92002.0,91988.0,0.20841898]
[1736455568197,0.10429976,92003.0,91975.0,0.0116]
[1736455568198,0.217365,92011.0,91996.0,0.217399]
[1736455568401,0.00014885,92002.0,91996.0,0.217399]
[1736455568604,0.00214885,92002.0,91996.0,0.217399]
[1736455569156,0.00314885,92002.0,91996.0,0.217399]
[1736455569394,0.00314885,92002.0,92000.0,0.21739]
[1736455569589,0.00214885,92002.0,92000.0,0.21739]
[1736455570175,0.00014885,92002.0,92000.0,0.21739]
[1736455570378,0.00514885,92002.0,92000.0,0.21739]
[1736455570673,0.00014885,92002.0,92000.0,0.21739]
[1736455571043,0.00214885,92002.0,92000.0,0.22339]
[1736455571253,0.00114885,92002.0,92000.0,0.21739]
[1736455571462,0.00014885,92002.0,92000.0,0.21739]
[1736455571658,0.00114885,92002.0,92000.0,0.22339]
[1736455571872,0.00114885,92002.0,92000.0,0.21939]
[1736455572871,0.00114885,92002.0,92000.0,0.21038998]
[1736455573322,0.00214885,92002.0,92000.0,0.21638998]
[1736455573525,0.00014885,92002.0,92000.0,0.002]
[1736455573726,0.57168776,92001.0,92000.0,0.008]
[1736455573925,0.65397142,92001.0,92000.0,0.008]
[1736455574621,0.217441,91979.0,91956.0,0.14580854]
[1736455574804,0.217455,91974.0,91960.0,0.10429976]
[1736455575013,0.217441,91979.0,91956.0,0.14580854]
[1736455575014,0.217465,91969.0,91956.0,0.14580854]
[1736455575215,0.217465,91969.0,91959.0,0.14580854]
[1736455575422,0.15,91972.0,91960.0,0.217485]
[1736455575652,0.217443,91978.0,91960.0,0.217485]
[1736455575864,0.15,91970.0,91951.0,0.229104]
[1736455576062,0.15,91970.0,91946.0,0.217516]
[1736455576276,0.217445,91977.0,91947.0,0.10429976]
[1736455576502,0.15,91975.0,91947.0,0.10429976]
[1736455576703,0.21744,91980.0,91963.0,0.217476]
[1736455576900,0.25041949,91980.0,91963.0,0.217476]
[1736455577119,0.01235486,91983.0,91949.0,0.14580854]
[1736455577317,0.22978786,91983.0,91950.0,0.32180876]
[1736455577521,0.22978786,91983.0,91973.0,0.217453]
[1736455577522,0.003,91977.0,91973.0,0.217453]
[1736455577816,0.01235486,91983.0,91973.0,0.20845298]
[1736455578266,0.005,91980.0,91977.0,0.434889]
[1736455578475,0.00011865,91983.0,91982.0,0.217433]
[1736455578896,0.00011865,91983.0,91982.0,0.2391787]
[1736455579102,0.00011865,91983.0,91982.0,0.217433]
[1736455579329,0.00011865,91983.0,91982.0,0.32173276]
[1736455580655,0.00111865,91983.0,91982.0,0.3555533]
[1736455580883,6.5e-07,91983.0,91982.0,0.5818533]
[1736455581099,4.21418255,92029.0,91986.0,0.1]
[1736455581305,4.2143314,92029.0,92020.0,0.217342]
[1736455581512,4.2262551,92029.0,92020.0,0.217342]
[1736455581718,4.2262551,92029.0,92018.0,0.217348]
[1736455582193,4.2262551,92029.0,92015.0,0.217355]
[1736455582592,0.15,92028.0,92015.0,0.217355]
[1736455582794,0.15,92028.0,92015.0,0.20835498]
[1736455582795,8.51e-05,92020.0,92015.0,0.20835498]
[1736455583443,8.51e-05,92020.0,92012.0,0.14586797]
[1736455583630,8.51e-05,92020.0,92012.0,0.217362]
[1736455583834,8.51e-05,92020.0,92011.0,0.14586797]
[1736455583835,0.2174301,92020.0,92011.0,0.14586797]
[1736455584083,0.02182711,92020.0,92009.0,0.14586797]
[1736455584506,0.02182711,92020.0,92015.0,0.001]
[1736455584688,0.02182711,92020.0,92003.0,0.228982]
[1736455584892,0.217348,92018.0,92003.0,0.228982]
[1736455585312,0.217348,92018.0,92003.0,0.446365]
[1736455585527,0.217353,92016.0,92003.0,0.228982]
[1736455585884,0.217353,92016.0,92003.0,0.37484997]
[1736455586504,0.217348,92018.0,92011.0,0.001]
[1736455586708,0.01170538,92018.0,92011.0,0.001]
[1736455586934,8.51e-05,92020.0,92014.0,0.217357]
[1736455587136,0.001,92016.0,92014.0,0.217357]
[1736455587562,8.51e-05,92020.0,92014.0,0.217357]
[1736455587790,8.51e-05,92020.0,92014.0,0.20835698]
[1736455587791,0.001,92018.0,92014.0,0.20835698]
[1736455588032,8.51e-05,92020.0,92014.0,0.20835698]
[1736455588533,8.51e-05,92020.0,92014.0,0.21335698]
[1736455588534,0.001,92016.0,92014.0,0.21335698]
[1736455589225,0.001,92016.0,92015.0,0.1289]
[1736455589440,8.51e-05,92020.0,92016.0,0.584706]
[1736455589649,8.51e-05,92020.0,92018.0,0.367348]
[1736455589876,8.51e-05,92020.0,92019.0,0.10538633]
[1736455590083,8.51e-05,92020.0,92019.0,0.16212661]
[1736455590306,4.8e-05,92035.0,92019.0,0.16212661]
[1736455590307,4.8e-05,92035.0,92022.0,0.1]
[1736455590514,4.8e-05,92035.0,92028.0,0.217325]
[1736455590752,4.8e-05,92035.0,92028.0,0.32162476]
[1736455591912,4.8e-05,92035.0,92028.0,0.47162476]
[1736455592121,4.1708674,92029.0,92028.0,0.57912476]
[1736455592384,4.1708674,92029.0,92028.0,0.82752476]
[1736455592385,3.68932264,92029.0,92028.0,0.82752476]
[1736455592639,3.41664255,92029.0,92028.0,0.69862476]
[1736455592874,3.39491055,92029.0,92028.0,0.69862476]
[1736455593101,2.7675161,92029.0,92028.0,0.75335097]
[1736455593338,2.38942469,92029.0,92028.0,0.64435097]
[1736455593533,2.38942469,92029.0,92028.0,0.74435097]
[1736455593744,2.38942469,92029.0,92028.0,0.75335097]
[1736455593954,2.30249669,92029.0,92028.0,0.75591097]
[1736455594154,2.28076469,92029.0,92028.0,0.72222609]
[1736455594383,2.26924631,92029.0,92028.0,0.76489256]
[1736455594586,2.26924631,92029.0,92028.0,0.71822609]
[1736455595041,2.22578231,92029.0,92028.0,0.72522609]
[1736455595215,2.18231831,92029.0,92028.0,0.72522609]
[1736455595412,2.14321632,92029.0,92028.0,0.751847]
[1736455595791,2.14321632,92029.0,92028.0,1.05134274]
[1736455596019,2.03555632,92029.0,92028.0,1.06034274]
[1736455596218,2.03555632,92029.0,92028.0,1.05134274]
[1736455596445,2.03455632,92029.0,92028.0,1.04234274]
[1736455596601,2.01851632,92029.0,92028.0,0.769847]
[1736455596799,1.99678432,92029.0,92028.0,0.769847]
[1736455597123,1.90985632,92029.0,92028.0,0.658287]
[1736455597326,1.90985632,92029.0,92028.0,0.63622609]
[1736455597557,1.90985632,92029.0,92028.0,0.73622609]
[1736455597903,1.70185173,92029.0,92028.0,0.73622609]
[1736455598102,1.70185173,92029.0,92028.0,0.76081835]
[1736455598458,1.69271873,92029.0,92028.0,0.66981835]
[1736455598826,1.64925473,92029.0,92028.0,0.76981835]
[1736455599024,1.58405873,92029.0,92028.0,0.76081835]
[1736455599413,1.58305873,92029.0,92028.0,0.76081835]
[1736455599772,1.58305873,92029.0,92028.0,0.76981835]
[1736455600040,1.49613073,92029.0,92028.0,0.76981835]
[1736455600270,1.47439873,92029.0,92028.0,0.76981835]
[1736455600747,1.47439873,92029.0,92028.0,0.76081835]
[1736455600987,1.38747073,92029.0,92028.0,0.76081835]
[1736455601213,1.36573873,92029.0,92028.0,0.76081835]
[1736455601399,1.28994838,92029.0,92028.0,0.76081835]
[1736455601809,1.28994838,92029.0,92028.0,0.76981835]
[1736455602015,1.18128838,92029.0,92028.0,0.76981835]
[1736455602253,1.04934262,92029.0,92028.0,0.76981835]